fUSD/lending_fUSD_20260505
["ID","MTS","AMOUNT","RATE_DAILY","PERIOD"]
[421601193,1777938753000,-556.71,0.00042246,120]
[421601203,1777938753000,-1581.96,0.00042246,120]
[421601196,1777938753000,-20831.24,0.00042246,120]
[421601220,1777938753000,-602.25,0.00042246,120]
[421601197,1777938753000,-507.75,0.00042246,120]
[421601207,1777938753000,-405.96,0.00042246,120]
[421601209,1777938753000,-4950.15,0.00042246,120]
[421601208,1777938753000,-1948.18,0.00042246,120]
[421601215,1777938753000,-1683.66,0.00042246,120]
[421601205,1777938753000,-758.08,0.00042246,120]
[421601214,1777938753000,-974.58,0.00042246,120]
[421601213,1777938753000,-695.23,0.00042246,120]
[421601212,1777938753000,-7661.52,0.00042246,120]
[421601210,1777938753000,-531.97,0.00042246,120]
[421601211,1777938753000,-500.0,0.00042246,120]
[421601216,1777938753000,-539.09,0.00042246,120]
[421601206,1777938753000,-515.78,0.00042246,120]
[421601249,1777938753000,-665.59,0.00042301,120]
[421601246,1777938753000,-538.86,0.00042301,120]
[421601245,1777938753000,-501.59,0.00042301,2]
[421601278,1777938753000,-542.72,0.00042301,120]
[421601288,1777938753000,-525.03,0.00042301,120]
[421601277,1777938753000,-760.4,0.00042301,120]
[421601279,1777938753000,-2743.4,0.00042301,120]
[421601280,1777938753000,-2616.79,0.00042301,120]
[421601282,1777938753000,-551.61,0.00042301,120]
[421601284,1777938753000,-2061.71,0.00042301,120]
[421601283,1777938753000,-500.0,0.00042301,120]
[421601281,1777938753000,-525.08,0.00042301,120]
[421601285,1777938753000,-1783.47,0.00042301,120]
[421601286,1777938753000,-591.32,0.00042301,120]
[421601276,1777938753000,-1148.79,0.00042301,120]
[421601290,1777938753000,-1185.59,0.00042301,120]
[421601289,1777938753000,-550.98,0.00042301,120]
[421601293,1777938753000,-682.65,0.00042301,120]
[421601291,1777938753000,-500.0,0.00042301,5]
[421601294,1777938753000,-593.7,0.00042301,120]
[421601297,1777938753000,-201.65,0.00042301,120]
[421601296,1777938753000,-356.03,0.00042301,120]
[421601299,1777938753000,-447.04,0.00042301,120]
[421601298,1777938753000,-526.93,0.00042301,120]
[421601295,1777938753000,-689.15,0.00042301,120]
[421601300,1777938753000,-19191.44,0.00042301,120]
[421601247,1777938753000,-370.63,0.00042301,120]
[421601292,1777938753000,-1111.02,0.00042301,120]
[421601274,1777938753000,-639.5,0.00042301,120]
[421601287,1777938753000,-527.86,0.00042301,120]
[421601271,1777938753000,-500.0,0.00042301,120]
[421601248,1777938753000,-681.79,0.00042301,120]
[421601275,1777938753000,-554.39,0.00042301,120]
[421601250,1777938753000,-574.3,0.00042301,120]
[421601252,1777938753000,-699.56,0.00042301,120]
[421601251,1777938753000,-506.44,0.00042301,120]
[421601253,1777938753000,-1005.04,0.00042301,120]
[421601254,1777938753000,-562.94,0.00042301,120]
[421601256,1777938753000,-562.44,0.00042301,120]
[421601255,1777938753000,-1415.03,0.00042301,120]
[421601265,1777938753000,-254.84,0.00042301,120]
[421601260,1777938753000,-154.06148347,0.00042301,120]
[421601257,1777938753000,-452.18,0.00042301,120]
[421601258,1777938753000,-500.0,0.00042301,120]
[421601272,1777938753000,-550.71,0.00042301,120]
[421601259,1777938753000,-569.37,0.00042301,120]
[421601263,1777938753000,-513.16,0.00042301,120]
[421601264,1777938753000,-500.0,0.00042301,120]
[421601262,1777938753000,-500.83,0.00042301,120]
[421601267,1777938753000,-600.64,0.00042301,120]
[421601266,1777938753000,-514.29,0.00042301,120]
[421601270,1777938753000,-782.2,0.00042301,120]
[421601269,1777938753000,-617.91,0.00042301,120]
[421601273,1777938753000,-427.58,0.00042301,120]
[421601261,1777938753000,-738.47,0.00042301,120]
[421601268,1777938753000,-539.94,0.00042301,120]
[421601339,1777938754000,-561.82,0.00042356,120]
[421601331,1777938754000,-409.1,0.00042315,120]
[421601340,1777938754000,-525.44,0.00042356,120]
[421601337,1777938754000,-598.8,0.00042356,120]
[421601347,1777938754000,-501.63756711,0.00042356,2]
[421601328,1777938754000,-602.25,0.00042301,120]
[421601333,1777938754000,-505.31,0.00042356,120]
[421601329,1777938754000,-512.4,0.00042301,120]
[421601334,1777938754000,-395.0,0.00042356,120]
[421601341,1777938754000,-563.36,0.00042356,120]
[421601336,1777938754000,-549.08,0.00042356,120]
[421601338,1777938754000,-519.56,0.00042356,120]
[421601349,1777938754000,-681.82,0.00042356,120]
[421601345,1777938754000,-1025.98,0.00042356,120]
[421601343,1777938754000,-1714.90301033,0.00042356,120]
[421601344,1777938754000,-182.25,0.00042356,120]
[421601346,1777938754000,-558.63,0.00042356,120]
[421601351,1777938754000,-506.44,0.00042356,120]
[421601357,1777938754000,-562.66,0.00042356,120]
[421601352,1777938754000,-574.36,0.00042356,120]
[421601350,1777938754000,-665.74727912,0.00042356,120]
[421601356,1777938754000,-1415.05,0.00042356,120]
[421601354,1777938754000,-1005.16,0.00042356,120]
[421601353,1777938754000,-699.68,0.00042356,120]
[421601330,1777938754000,-511.55,0.00042301,120]
[421601342,1777938754000,-563.46,0.00042356,120]
[421601326,1777938754000,-3600.11,0.00042301,120]
[421601306,1777938754000,-507.75,0.00042301,120]
[421601332,1777938754000,-1141.4,0.00042347,120]
[421601355,1777938754000,-563.11648489,0.00042356,120]
[421601302,1777938754000,-556.71,0.00042301,120]
[421601304,1777938754000,-20831.24,0.00042301,120]
[421601309,1777938754000,-2670.18,0.00042301,120]
[421601301,1777938754000,-696.58,0.00042301,120]
[421601311,1777938754000,-16320.05,0.00042301,120]
[421601303,1777938754000,-562.71,0.00042301,120]
[421601308,1777938754000,-546.18,0.00042301,120]
[421601307,1777938754000,-1227.72,0.00042301,120]
[421601305,1777938754000,-500.0,0.00042301,120]
[421601310,1777938754000,-983.68,0.00042301,120]
[421601313,1777938754000,-1414.82,0.00042301,120]
[421601327,1777938754000,-500.0,0.00042301,120]
[421601314,1777938754000,-758.08,0.00042301,120]
[421601323,1777938754000,-1683.66,0.00042301,120]
[421601320,1777938754000,-7661.52,0.00042301,120]
[421601316,1777938754000,-1948.18,0.00042301,120]
[421601319,1777938754000,-430.31,0.00042301,120]
[421601317,1777938754000,-4950.15,0.00042301,120]
[421601315,1777938754000,-515.78,0.00042301,120]
[421601318,1777938754000,-531.97,0.00042301,120]
[421601322,1777938754000,-974.58,0.00042301,120]
[421601321,1777938754000,-695.23,0.00042301,120]
[421601324,1777938754000,-539.09,0.00042301,120]
[421601325,1777938754000,-2126.61,0.00042301,120]
[421601335,1777938754000,-737.13,0.00042356,120]
[421601312,1777938754000,-1581.96,0.00042301,120]
[421601358,1777938754000,-208.45,0.00042356,120]
[421601348,1777938754000,-539.06,0.00042356,120]
[421601360,1777938754000,-738.58,0.00042356,120]
[421601391,1777938754000,-689.30502326,0.00042356,120]
[421601393,1777938754000,-19191.44967852,0.00042356,120]
[421601389,1777938754000,-682.78,0.00042356,120]
[421601392,1777938754000,-527.02,0.00042356,120]
[421601395,1777938754000,-556.86,0.00042356,120]
[421601394,1777938754000,-696.59,0.00042356,120]
[421601397,1777938754000,-209.68,0.00042356,120]
[421601396,1777938754000,-20831.47999991,0.00042356,120]
[421601399,1777938754000,-1227.75969205,0.00042356,120]
[421601403,1777938754000,-16320.13255763,0.00042356,120]
[421601401,1777938754000,-2670.33,0.00042356,120]
[421601400,1777938754000,-546.32,0.00042356,120]
[421601390,1777938754000,-593.9,0.00042356,120]
[421601404,1777938754000,-1582.09,0.00042356,120]
[421601398,1777938754000,-507.91,0.00042356,120]
[421601406,1777938754000,-758.24,0.00042356,120]
[421601409,1777938754000,-4950.25552069,0.00042356,120]
[421601410,1777938754000,-532.13,0.00042356,120]
[421601407,1777938754000,-515.79,0.00042356,120]
[421601415,1777938754000,-539.3,0.00042356,120]
[421601411,1777938754000,-7661.53,0.00042356,120]
[421601408,1777938754000,-1948.29231649,0.00042356,120]
[421601413,1777938754000,-974.64,0.00042356,120]
[421601412,1777938754000,-695.33,0.00042356,120]
[421601416,1777938754000,-2126.78,0.00042356,120]
[421601359,1777938754000,-569.47,0.00042356,120]
[421601402,1777938754000,-983.72,0.00042356,120]
[421601388,1777938754000,-1111.06,0.00042356,120]
[421601405,1777938754000,-1414.84,0.00042356,120]
[421601387,1777938754000,-304.95,0.00042356,5]
[421601363,1777938754000,-355.42,0.00042356,120]
[421601361,1777938754000,-501.06,0.00042356,120]
[421601370,1777938754000,-550.87066061,0.00042356,120]
[421601362,1777938754000,-513.33,0.00042356,120]
[421601364,1777938754000,-514.3,0.00042356,120]
[421601365,1777938754000,-600.65,0.00042356,120]
[421601384,1777938754000,-525.21,0.00042356,120]
[421601414,1777938754000,-1683.76,0.00042356,120]
[421601366,1777938754000,-540.05,0.00042356,120]
[421601369,1777938754000,-461.48,0.00042356,120]
[421601368,1777938754000,-782.3,0.00042356,120]
[421601382,1777938754000,-1783.63,0.00042356,120]
[421601372,1777938754000,-554.56,0.00042356,120]
[421601367,1777938754000,-618.14,0.00042356,120]
[421601378,1777938754000,-525.19,0.00042356,120]
[421601379,1777938754000,-551.83,0.00042356,120]
[421601385,1777938754000,-551.05,0.00042356,120]
[421601386,1777938754000,-1185.62143323,0.00042356,120]
[421601383,1777938754000,-527.87,0.00042356,120]
[421601380,1777938754000,-495.81,0.00042356,120]
[421601381,1777938754000,-2061.83,0.00042356,120]
[421601377,1777938754000,-2616.96294863,0.00042356,120]
[421601375,1777938754000,-542.84,0.00042356,120]
[421601373,1777938754000,-1148.85,0.00042356,120]
[421601374,1777938754000,-760.5,0.00042356,120]
[421601371,1777938754000,-639.6971538,0.00042356,120]
[421601376,1777938754000,-2743.45049999,0.00042356,120]
[421601429,1777938755000,-500.0,0.00042391,30]
[421601425,1777938755000,-151.0,0.00042378,60]
[421601430,1777938755000,-151.0,0.00042391,30]
[421601427,1777938755000,-243.34120498,0.00042385,30]
[421601428,1777938755000,-150.0,0.00042387,2]
[421601426,1777938755000,-1115.157653,0.00042384,30]
[421601423,1777938755000,-4276.75,0.00042371,2]
[421601419,1777938755000,-602.48,0.00042356,120]
[421601424,1777938755000,-169.06665037,0.00042376,120]
[421601420,1777938755000,-512.53,0.00042356,120]
[421601418,1777938755000,-267.41,0.00042356,120]
[421601421,1777938755000,-511.68,0.00042356,120]
[421601417,1777938755000,-3600.21,0.00042356,120]
[421601431,1777938755000,-500.0,0.00042391,60]
[421601422,1777938755000,-150.0,0.00042368,4]
[421601432,1777938755000,-151.0,0.00042391,60]
[421601434,1777938755000,-500.0,0.00042391,60]
[421601433,1777938755000,-500.0,0.00042391,30]
[421601449,1777938755000,-106905.83813866,0.00042444,2]
[421601450,1777938755000,-150.0,0.00042446,30]
[421601446,1777938755000,-3225.71816283,0.00042424,120]
[421601447,1777938755000,-405.64195887,0.00042442,120]
[421601445,1777938755000,-151.0,0.0004242,77]
[421601444,1777938755000,-500.0,0.0004242,77]
[421601442,1777938755000,-151.0,0.0004242,77]
[421601448,1777938755000,-470.77498212,0.00042442,120]
[421601441,1777938755000,-297.10099066,0.0004242,77]
[421601439,1777938755000,-409.1,0.00042415,120]
[421601440,1777938755000,-500.0,0.0004242,77]
[421601436,1777938755000,-1075.369,0.00042391,30]
[421601438,1777938755000,-200.04,0.00042411,120]
[421601437,1777938755000,-152.0,0.000424,120]
[421601435,1777938755000,-224.68311128,0.00042391,30]
[421601443,1777938755000,-4813.68726295,0.0004242,77]
[421601487,1777938756000,-1112.38606364,0.00042487,120]
[421601492,1777938756000,-11078.57126364,0.00042487,90]
[421601489,1777938756000,-424.97368301,0.00042487,120]
[421601481,1777938756000,-2477.97,0.00042487,120]
[421601483,1777938756000,-179.83670085,0.00042487,30]
[421601484,1777938756000,-4214.80705792,0.00042487,45]
[421601485,1777938756000,-5318.05921466,0.00042487,120]
[421601486,1777938756000,-694.02076671,0.00042487,120]
[421601482,1777938756000,-150.07930277,0.00042487,60]
[421601488,1777938756000,-354.76520923,0.00042487,120]
[421601493,1777938756000,-1016.02959456,0.00042487,120]
[421601490,1777938756000,-503.59144202,0.00042487,120]
[421601499,1777938756000,-168.6413879,0.00042487,120]
[421601496,1777938756000,-1213.8464919,0.00042487,120]
[421601494,1777938756000,-553.32001366,0.00042487,120]
[421601505,1777938756000,-315.13,0.00042487,120]
[421601495,1777938756000,-2290.48891337,0.00042487,60]
[421601497,1777938756000,-671.62694942,0.00042487,30]
[421601502,1777938756000,-355.4,0.00042487,120]
[421601498,1777938756000,-674.73021795,0.00042487,10]
[421601479,1777938756000,-5000.0,0.00042487,15]
[421601503,1777938756000,-236.9,0.00042487,30]
[421601504,1777938756000,-256.50243615,0.00042487,60]
[421601500,1777938756000,-4638.8355313,0.00042487,30]
[421601501,1777938756000,-150.11292928,0.00042487,120]
[421601491,1777938756000,-686.105898,0.00042487,120]
[421601471,1777938756000,-151242.59086855,0.00042487,30]
[421601470,1777938756000,-18074.28536527,0.00042487,30]
[421601477,1777938756000,-7054.91461848,0.00042487,120]
[421601452,1777938756000,-150.0,0.00042446,30]
[421601451,1777938756000,-2032.14077624,0.00042446,30]
[421601457,1777938756000,-175.36042365,0.00042464,120]
[421601453,1777938756000,-266.25827334,0.00042446,30]
[421601456,1777938756000,-210.16221797,0.00042454,2]
[421601455,1777938756000,-210.16221797,0.00042454,2]
[421601454,1777938756000,-210.16221797,0.00042454,2]
[421601459,1777938756000,-154.89,0.00042466,120]
[421601468,1777938756000,-4337.86901507,0.00042487,30]
[421601469,1777938756000,-141122.95103131,0.00042487,30]
[421601462,1777938756000,-625151.50389883,0.00042487,30]
[421601458,1777938756000,-158.22744229,0.00042466,120]
[421601472,1777938756000,-15596.86790143,0.00042487,30]
[421601467,1777938756000,-7649.11573488,0.00042487,30]
[421601466,1777938756000,-50000.0,0.00042487,30]
[421601465,1777938756000,-6432.28120885,0.00042487,30]
[421601460,1777938756000,-50000.0,0.00042486,60]
[421601464,1777938756000,-33582.69291428,0.00042487,30]
[421601461,1777938756000,-50000.0,0.00042486,61]
[421601507,1777938756000,-30000.0,0.00042487,120]
[421601473,1777938756000,-179344.1881787,0.00042487,30]
[421601474,1777938756000,-179345.03369676,0.00042487,30]
[421601478,1777938756000,-5000.0,0.00042487,30]
[421601476,1777938756000,-40000.0,0.00042487,30]
[421601480,1777938756000,-160.63606005,0.00042487,15]
[421601475,1777938756000,-101950.0,0.00042487,120]
[421601463,1777938756000,-21430.96094114,0.00042487,30]
[421601517,1777938756000,-472.03278792,0.00042487,120]
[421601522,1777938756000,-1120.74806623,0.00042487,120]
[421601508,1777938756000,-298.61106391,0.00042487,30]
[421601537,1777938756000,-50000.0,0.00042487,48]
[421601539,1777938756000,-1118.0,0.00042487,30]
[421601538,1777938756000,-114653.70659901,0.00042487,120]
[421601543,1777938756000,-318.25,0.00042487,120]
[421601546,1777938756000,-6528.0,0.00042487,30]
[421601545,1777938756000,-508.44478705,0.00042487,120]
[421601547,1777938756000,-4502.58351584,0.00042487,120]
[421601544,1777938756000,-1318170.29458655,0.00042487,120]
[421601549,1777938756000,-546942.12969275,0.00042487,61]
[421601550,1777938756000,-5220.54966439,0.00042487,10]
[421601548,1777938756000,-5877.58097889,0.00042487,120]
[421601556,1777938756000,-1118.0,0.00042487,30]
[421601536,1777938756000,-50000.0,0.00042487,45]
[421601552,1777938756000,-772.26482424,0.00042487,120]
[421601555,1777938756000,-10147.34356503,0.00042487,2]
[421601554,1777938756000,-422782.84377267,0.00042487,120]
[421601560,1777938756000,-21205.24,0.00042487,75]
[421601558,1777938756000,-75000.0,0.00042487,7]
[421601557,1777938756000,-1000.0,0.00042487,30]
[421601564,1777938756000,-626031.8714747,0.00042487,2]
[421601562,1777938756000,-207129.48108482,0.00042487,2]
[421601561,1777938756000,-400.58567928,0.00042487,2]
[421601565,1777938756000,-125133.3731071,0.00042487,2]
[421601559,1777938756000,-16000.0,0.00042487,2]
[421601563,1777938756000,-171978.73945141,0.00042487,2]
[421601506,1777938756000,-200.0,0.00042487,120]
[421601551,1777938756000,-438807.31429407,0.00042487,120]
[421601533,1777938756000,-206.33848684,0.00042487,120]
[421601553,1777938756000,-19390.62524608,0.00042487,120]
[421601534,1777938756000,-1440280.6406223,0.00042487,30]
[421601509,1777938756000,-181.04242164,0.00042487,120]
[421601535,1777938756000,-2103.0,0.00042487,30]
[421601513,1777938756000,-167.05829236,0.00042487,120]
[421601515,1777938756000,-217.0,0.00042487,120]
[421601510,1777938756000,-1734.59160778,0.00042487,60]
[421601511,1777938756000,-302.96612272,0.00042487,120]
[421601516,1777938756000,-2418.0799587,0.00042487,60]
[421601514,1777938756000,-288.60840466,0.00042487,120]
[421601519,1777938756000,-15847.18557294,0.00042487,3]
[421601518,1777938756000,-1014515.0,0.00042487,90]
[421601520,1777938756000,-258.8548122,0.00042487,120]
[421601521,1777938756000,-2513.7507471,0.00042487,120]
[421601525,1777938756000,-212645.0,0.00042487,120]
[421601512,1777938756000,-322.93120629,0.00042487,120]
[421601541,1777938756000,-543.0,0.00042487,120]
[421601524,1777938756000,-150.17,0.00042487,120]
[421601523,1777938756000,-8298.078339,0.00042487,90]
[421601527,1777938756000,-265000.0,0.00042487,120]
[421601528,1777938756000,-15538.0,0.00042487,60]
[421601526,1777938756000,-18039.54224791,0.00042487,120]
[421601530,1777938756000,-1399.72118865,0.00042487,120]
[421601531,1777938756000,-294.61,0.00042487,120]
[421601540,1777938756000,-306.5,0.00042487,120]
[421601542,1777938756000,-179.7,0.00042487,60]
[421601529,1777938756000,-24499.65554751,0.00042487,30]
[421601532,1777938756000,-1990.0,0.00042487,2]
[421601609,1777938757000,-1081.83183685,0.00042487,7]
[421601607,1777938757000,-15164.00402808,0.00042487,2]
[421601604,1777938757000,-815818.9214845,0.00042487,2]
[421601611,1777938757000,-174354.4512459,0.00042487,2]
[421601619,1777938757000,-677.27057221,0.00042487,2]
[421601605,1777938757000,-3323.2864578,0.00042487,2]
[421601600,1777938757000,-188.59379452,0.00042487,2]
[421601602,1777938757000,-994.5033376,0.00042487,2]
[421601601,1777938757000,-643.0,0.00042487,2]
[421601599,1777938757000,-13159.49928022,0.00042487,2]
[421601606,1777938757000,-179.68677569,0.00042487,2]
[421601617,1777938757000,-1308.37724253,0.00042487,2]
[421601603,1777938757000,-587.16570041,0.00042487,2]
[421601610,1777938757000,-10976.88872395,0.00042487,2]
[421601624,1777938757000,-1091.91566599,0.00042487,2]
[421601613,1777938757000,-234.26284841,0.00042487,2]
[421601616,1777938757000,-384.05582695,0.00042487,2]
[421601608,1777938757000,-550.0,0.00042487,2]
[421601612,1777938757000,-15307.40850947,0.00042487,2]
[421601618,1777938757000,-1057.29585765,0.00042487,2]
[421601614,1777938757000,-177.78632017,0.00042487,2]
[421601620,1777938757000,-7980.93276869,0.00042487,2]
[421601623,1777938757000,-219.83226731,0.00042487,2]
[421601621,1777938757000,-603.24417765,0.00042487,2]
[421601627,1777938757000,-350.18304829,0.00042487,2]
[421601622,1777938757000,-641.24306342,0.00042487,2]
[421601625,1777938757000,-2500.0,0.00042487,2]
[421601598,1777938757000,-766.01767727,0.00042487,2]
[421601615,1777938757000,-6000.0,0.00042487,2]
[421601597,1777938757000,-23483.65209916,0.00042487,2]
[421601566,1777938757000,-1210.0,0.00042487,2]
[421601595,1777938757000,-163818.49454186,0.00042487,2]
[421601626,1777938757000,-8060.17411358,0.00042487,30]
[421601569,1777938757000,-356.84158266,0.00042487,2]
[421601568,1777938757000,-720.20192766,0.00042487,2]
[421601567,1777938757000,-52202.53196473,0.00042487,2]
[421601570,1777938757000,-2871.40793115,0.00042487,2]
[421601572,1777938757000,-1557.57237916,0.00042487,2]
[421601573,1777938757000,-1054.8477628,0.00042487,2]
[421601581,1777938757000,-155.05689866,0.00042487,2]
[421601574,1777938757000,-5318.10612689,0.00042487,2]
[421601571,1777938757000,-990.45341201,0.00042487,2]
[421601576,1777938757000,-1525.15740666,0.00042487,2]
[421601575,1777938757000,-502.89787279,0.00042487,2]
[421601580,1777938757000,-221843.98923469,0.00042487,2]
[421601596,1777938757000,-2252.40422996,0.00042487,2]
[421601578,1777938757000,-3929.56294239,0.00042487,12]
[421601577,1777938757000,-2518.24447234,0.00042487,2]
[421601583,1777938757000,-1718.98459636,0.00042487,2]
[421601592,1777938757000,-1344.07383225,0.00042487,2]
[421601593,1777938757000,-3507.25121526,0.00042487,2]
[421601594,1777938757000,-27786.27916988,0.00042487,7]
[421601582,1777938757000,-1115.9694935,0.00042487,7]
[421601588,1777938757000,-58792.19152577,0.00042487,2]
[421601587,1777938757000,-249.35113526,0.00042487,2]
[421601585,1777938757000,-500.0,0.00042487,2]
[421601586,1777938757000,-1292.59785676,0.00042487,2]
[421601589,1777938757000,-1067.38728753,0.00042487,2]
[421601590,1777938757000,-558.78178059,0.00042487,2]
[421601591,1777938757000,-9471.5995026,0.00042487,2]
[421601579,1777938757000,-2772.92939682,0.00042487,2]
[421601628,1777938757000,-1100.0,0.00042487,2]
[421601584,1777938757000,-255.31402848,0.00042487,2]
[421601633,1777938757000,-1624.88329579,0.00042487,2]
[421601662,1777938757000,-760.50889105,0.00042487,2]
[421601667,1777938757000,-20000.0,0.00042487,2]
[421601666,1777938757000,-379.0,0.00042487,2]
[421601669,1777938757000,-160.58764154,0.00042487,2]
[421601663,1777938757000,-13687.92187649,0.00042487,2]
[421601665,1777938757000,-1529.52482038,0.00042487,2]
[421601670,1777938757000,-1601.98327677,0.00042487,2]
[421601671,1777938757000,-180.0,0.00042487,2]
[421601692,1777938757000,-5000.0,0.00042487,60]
[421601674,1777938757000,-5100.0,0.00042487,38]
[421601673,1777938757000,-500.0,0.00042487,2]
[421601675,1777938757000,-2584.0,0.00042487,120]
[421601676,1777938757000,-67368.25545127,0.00042487,30]
[421601678,1777938757000,-498.8473943,0.00042487,2]
[421601677,1777938757000,-5831.21163445,0.00042487,30]
[421601683,1777938757000,-23507.22947162,0.00042487,120]
[421601679,1777938757000,-21112.50141195,0.00042487,3]
[421601681,1777938757000,-13126.41201993,0.00042487,31]
[421601682,1777938757000,-9359.2343916,0.00042487,120]
[421601672,1777938757000,-5412.2124518,0.00042487,2]
[421601680,1777938757000,-100000.0,0.00042487,30]
[421601684,1777938757000,-166.9543513,0.00042487,12]
[421601685,1777938757000,-163683.83191291,0.00042487,120]
[421601687,1777938757000,-50178.88990723,0.00042487,60]
[421601686,1777938757000,-78825.43624371,0.00042487,120]
[421601688,1777938757000,-515601.52482943,0.00042487,30]
[421601690,1777938757000,-5000.0,0.00042487,60]
[421601691,1777938757000,-5000.0,0.00042487,60]
[421601632,1777938757000,-630.56692819,0.00042487,2]
[421601664,1777938757000,-201.33460928,0.00042487,2]
[421601668,1777938757000,-467.89878655,0.00042487,2]
[421601689,1777938757000,-155.97937154,0.00042487,30]
[421601660,1777938757000,-518.3420832,0.00042487,2]
[421601661,1777938757000,-204.27024153,0.00042487,2]
[421601631,1777938757000,-492.97622947,0.00042487,2]
[421601630,1777938757000,-933.72261393,0.00042487,2]
[421601635,1777938757000,-3327.06615155,0.00042487,7]
[421601645,1777938757000,-412.15322471,0.00042487,2]
[421601634,1777938757000,-561.28876512,0.00042487,2]
[421601636,1777938757000,-1035.72880446,0.00042487,2]
[421601640,1777938757000,-12542.07390737,0.00042487,2]
[421601639,1777938757000,-15171.00043903,0.00042487,2]
[421601637,1777938757000,-373.45115481,0.00042487,2]
[421601642,1777938757000,-1144.79836001,0.00042487,2]
[421601646,1777938757000,-20797.89079744,0.00042487,2]
[421601644,1777938757000,-279.75710638,0.00042487,2]
[421601638,1777938757000,-2257.61977264,0.00042487,2]
[421601629,1777938757000,-3918.65384445,0.00042487,2]
[421601641,1777938757000,-1880.36336056,0.00042487,2]
[421601655,1777938757000,-150.0,0.00042487,2]
[421601643,1777938757000,-15296.24961253,0.00042487,2]
[421601654,1777938757000,-471.62759205,0.00042487,2]
[421601659,1777938757000,-362.87829421,0.00042487,2]
[421601652,1777938757000,-2226.58490861,0.00042487,2]
[421601651,1777938757000,-5830.98437866,0.00042487,2]
[421601653,1777938757000,-897.12800176,0.00042487,2]
[421601649,1777938757000,-884.01736541,0.00042487,2]
[421601657,1777938757000,-12954.13594523,0.00042487,2]
[421601658,1777938757000,-610.0,0.00042487,2]
[421601656,1777938757000,-569.44733698,0.00042487,120]
[421601650,1777938757000,-289.57117371,0.00042487,2]
[421601648,1777938757000,-207.70691413,0.00042487,2]
[421601647,1777938757000,-2498.91228442,0.00042487,2]
[421601745,1777938758000,-412.72554587,0.00042487,120]
[421601739,1777938758000,-277.3571116,0.00042487,120]
[421601735,1777938758000,-2526.0,0.00042487,120]
[421601733,1777938758000,-160.80348784,0.00042487,30]
[421601729,1777938758000,-356.3,0.00042487,120]
[421601727,1777938758000,-170.45614395,0.00042487,120]
[421601732,1777938758000,-276.66494148,0.00042487,60]
[421601728,1777938758000,-170.12,0.00042487,60]
[421601730,1777938758000,-237.6,0.00042487,30]
[421601726,1777938758000,-457.52141515,0.00042487,120]
[421601724,1777938758000,-162.38413026,0.00042487,120]
[421601731,1777938758000,-2115.72286499,0.00042487,120]
[421601738,1777938758000,-424.0,0.00042487,120]
[421601737,1777938758000,-266.0,0.00042487,120]
[421601734,1777938758000,-60976.0,0.00042487,90]
[421601741,1777938758000,-258.0,0.00042487,2]
[421601744,1777938758000,-235.39272538,0.00042487,120]
[421601742,1777938758000,-200.76,0.00042487,14]
[421601740,1777938758000,-234.0,0.00042487,120]
[421601743,1777938758000,-326.41551044,0.00042487,120]
[421601746,1777938758000,-150.09205415,0.00042487,120]
[421601748,1777938758000,-380.97930444,0.00042487,120]
[421601747,1777938758000,-445.36997222,0.00042487,120]
[421601757,1777938758000,-236.09628,0.00042487,120]
[421601754,1777938758000,-2679.45305847,0.00042487,120]
[421601725,1777938758000,-3556.75640549,0.00042487,120]
[421601750,1777938758000,-317.0419977,0.00042487,45]
[421601736,1777938758000,-153.55763423,0.00042487,120]
[421601723,1777938758000,-229.14915192,0.00042487,120]
[421601703,1777938758000,-500.0,0.00042487,60]
[421601713,1777938758000,-269.78,0.00042487,120]
[421601753,1777938758000,-422.01,0.00042487,120]
[421601696,1777938758000,-1037.22,0.00042487,60]
[421601697,1777938758000,-1037.22,0.00042487,60]
[421601693,1777938758000,-5000.0,0.00042487,60]